[Event "Titled Tuesday Blitz July 26 Early 2022"]
[White "Suleymanli, Aydin"]
[Black "Maksimovic, Bojan"]
[WhiteFideId "13413937"]
[BlackFideId "14408120"]
[WhiteElo "2481"]
[BlackElo "2453"]
[Result "0-1"]
[Round "08"]
[TimeControl "180+1"]
[Date "2022.07.26"]
[WhiteClock "0:00:01"]
[BlackClock "0:00:08"]

1. d4 {[%clk 0:03:00]}  d5 {[%clk 0:02:52]} 2. c4 {[%clk 0:03:00]}  dxc4 {[%clk 0:02:52]} 3. e3 {[%clk 0:02:59]}  e5 {[%clk 0:02:50]} 4. Bxc4 {[%clk 0:02:58]}  exd4 {[%clk 0:02:49]} 5. Nf3 {[%clk 0:02:52]}  Bb4+ {[%clk 0:02:34]} 6. Bd2 {[%clk 0:02:50]}  Bxd2+ {[%clk 0:02:33]} 7. Qxd2 {[%clk 0:02:50]}  Nf6 {[%clk 0:02:31]} 8. O-O {[%clk 0:02:49]}  O-O {[%clk 0:02:29]} 9. exd4 {[%clk 0:02:49]}  Nc6 {[%clk 0:02:26]} 10. d5 {[%clk 0:02:48]}  Ne7 {[%clk 0:02:24]} 11. Nc3 {[%clk 0:02:46]}  Nf5 {[%clk 0:02:15]} 12. Rfe1 {[%clk 0:02:41]}  Nd6 {[%clk 0:02:15]} 13. Bb3 {[%clk 0:02:41]}  a6 {[%clk 0:02:14]} 14. Nd4 {[%clk 0:02:33]}  Re8 {[%clk 0:02:09]} 15. Rxe8+ {[%clk 0:02:31]}  Nfxe8 {[%clk 0:02:05]} 16. Re1 {[%clk 0:02:31]}  Bd7 {[%clk 0:02:03]} 17. Ne6 {[%clk 0:02:30]}  Qh4 {[%clk 0:01:55]} 18. Nc5 {[%clk 0:02:27]}  Bf5 {[%clk 0:01:49]} 19. f3 {[%clk 0:02:13]}  b6 {[%clk 0:01:46]} 20. N5e4 {[%clk 0:02:10]}  Bxe4 {[%clk 0:01:45]} 21. fxe4 {[%clk 0:02:10]}  f6 {[%clk 0:01:30]} 22. Rf1 {[%clk 0:02:02]}  Nf7 {[%clk 0:01:04]} 23. d6 {[%clk 0:01:32]}  Nxd6 {[%clk 0:01:03]} 24. g3 {[%clk 0:01:25]}  Qh5 {[%clk 0:00:45]} 25. Nd5 {[%clk 0:00:59]}  Qe5 {[%clk 0:00:45]} 26. Qf2 {[%clk 0:00:18]}  Nxe4 {[%clk 0:00:42]} 27. Qe3 {[%clk 0:00:16]}  Re8 {[%clk 0:00:40]} 28. Re1 {[%clk 0:00:12]}  Nc5 {[%clk 0:00:16]} 29. Qxe5 {[%clk 0:00:04]}  Rxe5 {[%clk 0:00:17]} 30. Rxe5 {[%clk 0:00:04]}  Nxe5 {[%clk 0:00:16]} 31. Bc2 {[%clk 0:00:04]}  Ne6 {[%clk 0:00:14]} 32. Bf5 {[%clk 0:00:04]}  Nd4 {[%clk 0:00:13]} 33. Bc8 {[%clk 0:00:03]}  a5 {[%clk 0:00:08]} 34. Nxc7 {[%clk 0:00:03]}  Nc4 {[%clk 0:00:07]} 35. b3 {[%clk 0:00:02]}  Ne3 {[%clk 0:00:08]} 36. Na8 {[%clk 0:00:02]}  Nd5 {[%clk 0:00:07]} 37. Bb7 {[%clk 0:00:01]}  Nc3 {[%clk 0:00:08]} 0-1


[Site "https://www.chess.com"]

[Event "Titled Tuesday Blitz July 26 Early 2022"]
[White "Vakhlamov, Igor L."]
[Black "Howell, David W L"]
[WhiteFideId "24126748"]
[BlackFideId "410608"]
[WhiteElo "2401"]
[BlackElo "2559"]
[Result "1-0"]
[Round "08"]
[TimeControl "180+1"]
[Date "2022.07.26"]
[WhiteClock "0:01:46"]
[BlackClock "0:00:01"]

1. e4 {[%clk 0:03:00]}  c5 {[%clk 0:02:57]} 2. Nf3 {[%clk 0:03:00]}  Nc6 {[%clk 0:02:57]} 3. Nc3 {[%clk 0:03:00]}  d6 {[%clk 0:02:52]} 4. Bb5 {[%clk 0:03:00]}  Bd7 {[%clk 0:02:52]} 5. Bxc6 {[%clk 0:03:00]}  Bxc6 {[%clk 0:02:53]} 6. d4 {[%clk 0:03:00]}  cxd4 {[%clk 0:02:53]} 7. Qxd4 {[%clk 0:03:01]}  Nf6 {[%clk 0:02:54]} 8. Bg5 {[%clk 0:03:01]}  e6 {[%clk 0:02:44]} 9. O-O-O {[%clk 0:03:01]}  Be7 {[%clk 0:02:44]} 10. Rhe1 {[%clk 0:03:01]}  Qa5 {[%clk 0:02:27]} 11. Nd5 {[%clk 0:03:00]}  Bxd5 {[%clk 0:01:29]} 12. exd5 {[%clk 0:03:00]}  e5 {[%clk 0:01:29]} 13. Nxe5 {[%clk 0:03:00]}  dxe5 {[%clk 0:01:30]} 14. Qxe5 {[%clk 0:03:01]}  O-O {[%clk 0:01:30]} 15. Qxe7 {[%clk 0:03:00]}  Rae8 {[%clk 0:00:29]} 16. Bxf6 {[%clk 0:02:36]}  Rxe7 {[%clk 0:00:22]} 17. Bxe7 {[%clk 0:02:37]}  Qxa2 {[%clk 0:00:19]} 18. Bxf8 {[%clk 0:02:31]}  Kxf8 {[%clk 0:00:12]} 19. c3 {[%clk 0:02:18]}  Qa1+ {[%clk 0:00:10]} 20. Kc2 {[%clk 0:02:18]}  Qa4+ {[%clk 0:00:10]} 21. Kb1 {[%clk 0:02:19]}  a5 {[%clk 0:00:05]} 22. d6 {[%clk 0:02:18]}  Qd7 {[%clk 0:00:05]} 23. Re7 {[%clk 0:02:08]}  Qf5+ {[%clk 0:00:05]} 24. Kc1 {[%clk 0:02:08]}  Qxf2 {[%clk 0:00:02]} 25. d7 {[%clk 0:01:53]}  Qf4+ {[%clk 0:00:01]} 26. Rd2 {[%clk 0:01:53]}  Qf1+ {[%clk 0:00:01]} 27. Kc2 {[%clk 0:01:50]}  Qf5+ {[%clk 0:00:01]} 28. Kd1 {[%clk 0:01:46]} 1-0


[Site "https://www.chess.com"]

[Event "Titled Tuesday Blitz July 26 Early 2022"]
[White "Vovk, Orest"]
[Black "Ismayil, Malak"]
[WhiteFideId "14113490"]
[BlackFideId "13412604"]
[WhiteElo "2203"]
[BlackElo "1879"]
[Result "1-0"]
[Round "08"]
[TimeControl "180+1"]
[Date "2022.07.27"]
[WhiteClock "0:00:06"]
[BlackClock "0:00:02"]

1. h3 {[%clk 0:02:55]}  e5 {[%clk 0:02:59]} 2. g4 {[%clk 0:02:54]}  d5 {[%clk 0:02:58]} 3. Bg2 {[%clk 0:02:46]}  h6 {[%clk 0:02:53]} 4. d4 {[%clk 0:02:45]}  exd4 {[%clk 0:02:43]} 5. Qxd4 {[%clk 0:02:44]}  Nf6 {[%clk 0:02:44]} 6. g5 {[%clk 0:02:40]}  hxg5 {[%clk 0:02:18]} 7. Bxg5 {[%clk 0:02:39]}  Be7 {[%clk 0:02:18]} 8. Nc3 {[%clk 0:02:36]}  c6 {[%clk 0:02:11]} 9. O-O-O {[%clk 0:02:32]}  Be6 {[%clk 0:02:04]} 10. e4 {[%clk 0:02:27]}  dxe4 {[%clk 0:01:44]} 11. Qxd8+ {[%clk 0:02:25]}  Bxd8 {[%clk 0:01:42]} 12. Nxe4 {[%clk 0:02:25]}  Nbd7 {[%clk 0:01:36]} 13. Nd6+ {[%clk 0:02:21]}  Kf8 {[%clk 0:01:35]} 14. Nxb7 {[%clk 0:02:21]}  Be7 {[%clk 0:01:18]} 15. Bxc6 {[%clk 0:01:56]}  Rc8 {[%clk 0:01:17]} 16. Bg2 {[%clk 0:01:55]}  Rh5 {[%clk 0:01:12]} 17. f4 {[%clk 0:01:47]}  Bxa2 {[%clk 0:01:06]} 18. Bf3 {[%clk 0:01:36]}  Rh8 {[%clk 0:00:55]} 19. Ne2 {[%clk 0:01:35]}  Nc5 {[%clk 0:00:34]} 20. Nxc5 {[%clk 0:01:27]}  Rxc5 {[%clk 0:00:35]} 21. Nd4 {[%clk 0:01:21]}  Bd5 {[%clk 0:00:21]} 22. Bxd5 {[%clk 0:01:18]}  Nxd5 {[%clk 0:00:22]} 23. Nb3 {[%clk 0:00:57]}  Rb5 {[%clk 0:00:10]} 24. Bxe7+ {[%clk 0:00:55]}  Kxe7 {[%clk 0:00:11]} 25. Rhe1+ {[%clk 0:00:55]}  Kf6 {[%clk 0:00:11]} 26. Re5 {[%clk 0:00:48]}  Rd8 {[%clk 0:00:10]} 27. Nd4 {[%clk 0:00:18]}  Rc5 {[%clk 0:00:04]} 28. Ne2 {[%clk 0:00:09]}  Ra5 {[%clk 0:00:02]} 29. Kb1 {[%clk 0:00:06]}  Nc3+ {[%clk 0:00:01]} 30. Nxc3 {[%clk 0:00:06]}  Rb8 {[%clk 0:00:02]} 31. Rxa5 {[%clk 0:00:06]} 1-0


[Site "https://www.chess.com"]

[Event "Titled Tuesday Blitz July 26 Early 2022"]
[White "Wieczorek, Oskar"]
[Black "Rustemov, Alexander"]
[WhiteFideId "1133950"]
[BlackFideId "4119002"]
[WhiteElo "2330"]
[BlackElo "2806"]
[Result "0-1"]
[Round "08"]
[TimeControl "180+1"]
[Date "2022.07.26"]
[WhiteClock "0:00:04"]
[BlackClock "0:00:12"]

1. e4 {[%clk 0:03:00]}  e6 {[%clk 0:03:00]} 2. d4 {[%clk 0:03:00]}  d5 {[%clk 0:03:00]} 3. Nd2 {[%clk 0:03:01]}  dxe4 {[%clk 0:03:00]} 4. Nxe4 {[%clk 0:03:00]}  Bd7 {[%clk 0:03:00]} 5. Nf3 {[%clk 0:03:01]}  Bc6 {[%clk 0:03:01]} 6. Bd3 {[%clk 0:03:01]}  Nd7 {[%clk 0:03:01]} 7. O-O {[%clk 0:03:01]}  Ngf6 {[%clk 0:03:02]} 8. Ng3 {[%clk 0:02:59]}  Be7 {[%clk 0:03:02]} 9. Re1 {[%clk 0:02:58]}  O-O {[%clk 0:03:02]} 10. c3 {[%clk 0:02:58]}  b6 {[%clk 0:03:01]} 11. Qe2 {[%clk 0:02:55]}  Bb7 {[%clk 0:03:01]} 12. Ne5 {[%clk 0:02:55]}  c5 {[%clk 0:03:00]} 13. Nxd7 {[%clk 0:02:52]}  Qxd7 {[%clk 0:02:59]} 14. Be3 {[%clk 0:02:52]}  Qc6 {[%clk 0:02:46]} 15. f3 {[%clk 0:02:51]}  Rfd8 {[%clk 0:02:45]} 16. dxc5 {[%clk 0:02:43]}  Bxc5 {[%clk 0:02:39]} 17. Rad1 {[%clk 0:02:43]}  Nd5 {[%clk 0:02:33]} 18. Bxc5 {[%clk 0:02:43]}  Qxc5+ {[%clk 0:02:34]} 19. Qf2 {[%clk 0:02:44]}  Nf4 {[%clk 0:02:22]} 20. Qxc5 {[%clk 0:02:40]}  bxc5 {[%clk 0:02:22]} 21. Bf1 {[%clk 0:02:38]}  a5 {[%clk 0:02:16]} 22. Kf2 {[%clk 0:02:38]}  g5 {[%clk 0:02:12]} 23. Bb5 {[%clk 0:02:26]}  f6 {[%clk 0:02:04]} 24. Ne2 {[%clk 0:02:24]}  Nxe2 {[%clk 0:01:56]} 25. Kxe2 {[%clk 0:02:16]}  Kf7 {[%clk 0:01:51]} 26. Ke3 {[%clk 0:02:09]}  f5 {[%clk 0:01:47]} 27. g3 {[%clk 0:02:08]}  e5 {[%clk 0:01:44]} 28. f4 {[%clk 0:02:04]}  exf4+ {[%clk 0:01:41]} 29. gxf4 {[%clk 0:02:04]}  g4 {[%clk 0:01:42]} 30. Bd7 {[%clk 0:01:40]}  Be4 {[%clk 0:01:38]} 31. Rd6 {[%clk 0:01:38]}  Rab8 {[%clk 0:01:23]} 32. Red1 {[%clk 0:01:35]}  Kg7 {[%clk 0:01:21]} 33. b3 {[%clk 0:01:27]}  h5 {[%clk 0:01:17]} 34. c4 {[%clk 0:00:58]}  h4 {[%clk 0:01:17]} 35. Re6 {[%clk 0:00:52]}  Rb7 {[%clk 0:01:08]} 36. Re7+ {[%clk 0:00:52]}  Kh8 {[%clk 0:01:07]} 37. Rd6 {[%clk 0:00:43]}  Bc6 {[%clk 0:00:24]} 38. Rh6+ {[%clk 0:00:38]}  Kg8 {[%clk 0:00:24]} 39. Be6+ {[%clk 0:00:39]}  Kf8 {[%clk 0:00:20]} 40. Rxb7 {[%clk 0:00:37]}  Bxb7 {[%clk 0:00:19]} 41. Bxf5 {[%clk 0:00:28]}  g3 {[%clk 0:00:18]} 42. hxg3 {[%clk 0:00:24]}  hxg3 {[%clk 0:00:19]} 43. Rh8+ {[%clk 0:00:17]}  Ke7 {[%clk 0:00:19]} 44. Rxd8 {[%clk 0:00:18]}  Kxd8 {[%clk 0:00:20]} 45. Be6 {[%clk 0:00:19]}  Ke7 {[%clk 0:00:19]} 46. f5 {[%clk 0:00:17]}  Kf6 {[%clk 0:00:17]} 47. Bd7 {[%clk 0:00:05]}  Be4 {[%clk 0:00:16]} 48. Be6 {[%clk 0:00:04]}  Bb1 {[%clk 0:00:12]} 49. Kf3 {[%clk 0:00:02]}  Bxa2 {[%clk 0:00:11]} 50. Kxg3 {[%clk 0:00:02]}  Bxb3 {[%clk 0:00:11]} 51. Kf4 {[%clk 0:00:03]}  a4 {[%clk 0:00:12]} 52. Ke3 {[%clk 0:00:04]}  a3 {[%clk 0:00:12]} 0-1


[Site "https://www.chess.com"]

[Event "Titled Tuesday Blitz July 26 Early 2022"]
[White "Xu, Yi"]
[Black "Tatarinov, Dmitry"]
[WhiteFideId "8605564"]
[BlackFideId "24160067"]
[WhiteElo "2471"]
[BlackElo "2302"]
[Result "1-0"]
[Round "08"]
[TimeControl "180+1"]
[Date "2022.07.26"]
[WhiteClock "0:00:06"]
[BlackClock "0:00:11"]

1. e4 {[%clk 0:03:00]}  c5 {[%clk 0:02:52]} 2. Nf3 {[%clk 0:03:00]}  d6 {[%clk 0:02:53]} 3. d4 {[%clk 0:02:59]}  cxd4 {[%clk 0:02:54]} 4. Nxd4 {[%clk 0:03:00]}  Nf6 {[%clk 0:02:54]} 5. Nc3 {[%clk 0:03:00]}  a6 {[%clk 0:02:55]} 6. f3 {[%clk 0:02:58]}  e5 {[%clk 0:02:55]} 7. Nb3 {[%clk 0:02:58]}  h5 {[%clk 0:02:55]} 8. Be3 {[%clk 0:02:55]}  Be6 {[%clk 0:02:55]} 9. Qd2 {[%clk 0:02:54]}  Nbd7 {[%clk 0:02:55]} 10. Nd5 {[%clk 0:02:46]}  Nxd5 {[%clk 0:02:50]} 11. exd5 {[%clk 0:02:45]}  Bf5 {[%clk 0:02:51]} 12. Be2 {[%clk 0:02:39]}  Be7 {[%clk 0:02:49]} 13. a4 {[%clk 0:02:37]}  a5 {[%clk 0:02:45]} 14. O-O {[%clk 0:02:37]}  O-O {[%clk 0:02:45]} 15. f4 {[%clk 0:02:27]}  exf4 {[%clk 0:02:41]} 16. Bxf4 {[%clk 0:02:21]}  Bg6 {[%clk 0:02:41]} 17. Nd4 {[%clk 0:02:22]}  Nc5 {[%clk 0:02:30]} 18. Bf3 {[%clk 0:02:18]}  Qb6 {[%clk 0:02:24]} 19. Be3 {[%clk 0:02:08]}  Rfe8 {[%clk 0:02:21]} 20. Nb5 {[%clk 0:02:06]}  Bf6 {[%clk 0:02:08]} 21. c3 {[%clk 0:01:56]}  Nb3 {[%clk 0:01:58]} 22. Bxb6 {[%clk 0:01:53]}  Nxd2 {[%clk 0:01:57]} 23. Nxd6 {[%clk 0:01:50]}  Re5 {[%clk 0:01:30]} 24. Rfd1 {[%clk 0:01:31]}  Nxf3+ {[%clk 0:01:29]} 25. gxf3 {[%clk 0:01:32]}  Bc2 {[%clk 0:01:20]} 26. Rd2 {[%clk 0:01:15]}  Bb3 {[%clk 0:01:20]} 27. c4 {[%clk 0:01:09]}  Be7 {[%clk 0:01:13]} 28. f4 {[%clk 0:01:06]}  Bxd6 {[%clk 0:00:27]} 29. fxe5 {[%clk 0:01:06]}  Bb4 {[%clk 0:00:26]} 30. Rd4 {[%clk 0:00:58]}  Ra6 {[%clk 0:00:27]} 31. d6 {[%clk 0:00:43]}  Rxb6 {[%clk 0:00:26]} 32. d7 {[%clk 0:00:44]}  Be7 {[%clk 0:00:26]} 33. d8=Q+ {[%clk 0:00:44]}  Bxd8 {[%clk 0:00:27]} 34. Rxd8+ {[%clk 0:00:44]}  Kh7 {[%clk 0:00:28]} 35. Rd4 {[%clk 0:00:38]}  Rb4 {[%clk 0:00:23]} 36. Rf1 {[%clk 0:00:35]}  Kg6 {[%clk 0:00:20]} 37. Rd6+ {[%clk 0:00:33]}  f6 {[%clk 0:00:16]} 38. exf6 {[%clk 0:00:30]}  gxf6 {[%clk 0:00:17]} 39. Rdxf6+ {[%clk 0:00:30]}  Kg5 {[%clk 0:00:17]} 40. R1f4 {[%clk 0:00:28]}  h4 {[%clk 0:00:13]} 41. R6f5+ {[%clk 0:00:17]}  Kg6 {[%clk 0:00:13]} 42. Rb5 {[%clk 0:00:17]}  Bxa4 {[%clk 0:00:08]} 43. Rxb4 {[%clk 0:00:17]}  axb4 {[%clk 0:00:08]} 44. c5 {[%clk 0:00:17]}  Bc6 {[%clk 0:00:08]} 45. Rxb4 {[%clk 0:00:15]}  h3 {[%clk 0:00:09]} 46. Kf2 {[%clk 0:00:14]}  Kf5 {[%clk 0:00:09]} 47. Kg3 {[%clk 0:00:14]}  Ke5 {[%clk 0:00:10]} 48. Rh4 {[%clk 0:00:10]}  Kd5 {[%clk 0:00:08]} 49. Rh5+ {[%clk 0:00:10]}  Kc4 {[%clk 0:00:09]} 50. Kxh3 {[%clk 0:00:10]}  Kb3 {[%clk 0:00:10]} 51. Kg4 {[%clk 0:00:09]}  Kxb2 {[%clk 0:00:10]} 52. Re5 {[%clk 0:00:09]}  Kc3 {[%clk 0:00:10]} 53. h4 {[%clk 0:00:09]}  Kd4 {[%clk 0:00:10]} 54. Kf4 {[%clk 0:00:09]}  Bd5 {[%clk 0:00:11]} 55. h5 {[%clk 0:00:06]}  Kxc5 {[%clk 0:00:11]} 56. h6 {[%clk 0:00:05]}  Kd6 {[%clk 0:00:11]} 57. Rxd5+ {[%clk 0:00:06]}  Kxd5 {[%clk 0:00:11]} 58. h7 {[%clk 0:00:06]} 1-0


[Site "https://www.chess.com"]

[Event "Titled Tuesday Blitz July 26 Early 2022"]
[White "Ansh M Shah"]
[Black "Estrada Nieto, Julian"]
[WhiteFideId "25033379"]
[BlackFideId "5101018"]
[WhiteElo "1819"]
[BlackElo "2252"]
[Result "1-0"]
[Round "09"]
[TimeControl "180+1"]
[Date "2022.07.27"]
[WhiteClock "0:00:12"]
[BlackClock "0:00:07"]

1. d4 {[%clk 0:03:00]}  d5 {[%clk 0:02:59]} 2. c4 {[%clk 0:03:01]}  dxc4 {[%clk 0:03:00]} 3. Nf3 {[%clk 0:03:01]}  Nf6 {[%clk 0:03:00]} 4. e3 {[%clk 0:03:01]}  e6 {[%clk 0:03:00]} 5. Bxc4 {[%clk 0:03:02]}  a6 {[%clk 0:03:00]} 6. O-O {[%clk 0:03:01]}  c5 {[%clk 0:03:00]} 7. dxc5 {[%clk 0:02:59]}  Bxc5 {[%clk 0:02:59]} 8. Qxd8+ {[%clk 0:02:56]}  Kxd8 {[%clk 0:03:00]} 9. a3 {[%clk 0:02:44]}  Ke7 {[%clk 0:02:59]} 10. b4 {[%clk 0:02:40]}  Bd6 {[%clk 0:02:59]} 11. Bb2 {[%clk 0:02:41]}  b5 {[%clk 0:02:59]} 12. Be2 {[%clk 0:02:38]}  Bb7 {[%clk 0:03:00]} 13. Nc3 {[%clk 0:02:38]}  Nbd7 {[%clk 0:03:00]} 14. Rfd1 {[%clk 0:02:38]}  Rhd8 {[%clk 0:02:54]} 15. a4 {[%clk 0:02:27]}  bxa4 {[%clk 0:02:41]} 16. Nxa4 {[%clk 0:01:51]}  Bxb4 {[%clk 0:02:35]} 17. Rab1 {[%clk 0:01:41]}  a5 {[%clk 0:02:31]} 18. Nd4 {[%clk 0:01:39]}  Rac8 {[%clk 0:02:26]} 19. Bb5 {[%clk 0:01:36]}  Ne5 {[%clk 0:01:56]} 20. Rbc1 {[%clk 0:00:49]}  Nd5 {[%clk 0:01:08]} 21. Nb3 {[%clk 0:00:14]}  Rxc1 {[%clk 0:00:58]} 22. Rxc1 {[%clk 0:00:15]}  Nd7 {[%clk 0:00:30]} 23. Bxg7 {[%clk 0:00:11]}  f6 {[%clk 0:00:23]} 24. Bh6 {[%clk 0:00:11]}  Rg8 {[%clk 0:00:15]} 25. e4 {[%clk 0:00:11]}  N5b6 {[%clk 0:00:12]} 26. Nxb6 {[%clk 0:00:11]}  Nxb6 {[%clk 0:00:12]} 27. Be3 {[%clk 0:00:11]}  Nd7 {[%clk 0:00:08]} 28. Rc7 {[%clk 0:00:09]}  Bxe4 {[%clk 0:00:08]} 29. Rxd7+ {[%clk 0:00:10]}  Kf8 {[%clk 0:00:07]} 30. g3 {[%clk 0:00:10]}  Rg6 {[%clk 0:00:04]} 31. Bc5+ {[%clk 0:00:09]}  Kg8 {[%clk 0:00:04]} 32. Bxb4 {[%clk 0:00:09]}  axb4 {[%clk 0:00:03]} 33. Bc4 {[%clk 0:00:09]}  f5 {[%clk 0:00:02]} 34. Nc5 {[%clk 0:00:08]}  Bd5 {[%clk 0:00:02]} 35. Bxd5 {[%clk 0:00:08]}  exd5 {[%clk 0:00:02]} 36. Rxd5 {[%clk 0:00:08]}  Rb6 {[%clk 0:00:02]} 37. Nb3 {[%clk 0:00:08]}  Kf7 {[%clk 0:00:02]} 38. Kg2 {[%clk 0:00:09]}  Ke6 {[%clk 0:00:02]} 39. Rc5 {[%clk 0:00:09]}  Kd6 {[%clk 0:00:02]} 40. Rc4 {[%clk 0:00:09]}  Kd5 {[%clk 0:00:02]} 41. Rd4+ {[%clk 0:00:10]}  Ke5 {[%clk 0:00:02]} 42. f4+ {[%clk 0:00:11]}  Ke6 {[%clk 0:00:02]} 43. Kf3 {[%clk 0:00:11]}  Rb8 {[%clk 0:00:01]} 44. Ke3 {[%clk 0:00:12]}  Rc8 {[%clk 0:00:02]} 45. Rd3 {[%clk 0:00:12]}  Rc3 {[%clk 0:00:02]} 46. Rxc3 {[%clk 0:00:12]}  bxc3 {[%clk 0:00:02]} 47. Kd3 {[%clk 0:00:13]}  c2 {[%clk 0:00:03]} 48. Kxc2 {[%clk 0:00:13]}  Kd5 {[%clk 0:00:04]} 49. Kd3 {[%clk 0:00:14]}  Ke6 {[%clk 0:00:04]} 50. Nd4+ {[%clk 0:00:15]}  Kf6 {[%clk 0:00:03]} 51. Kc4 {[%clk 0:00:15]}  h6 {[%clk 0:00:04]} 52. Kd5 {[%clk 0:00:15]}  Kg6 {[%clk 0:00:05]} 53. Ke5 {[%clk 0:00:13]}  Kh5 {[%clk 0:00:06]} 54. Nxf5 {[%clk 0:00:11]}  Kg4 {[%clk 0:00:06]} 55. Nxh6+ {[%clk 0:00:12]}  Kh3 {[%clk 0:00:07]} 56. g4 {[%clk 0:00:12]} 1-0


[Site "https://www.chess.com"]

[Event "Titled Tuesday Blitz July 26 Early 2022"]
[White "Ciuffoletti, Paolo"]
[Black "Hoang, Canh Huan"]
[WhiteFideId "807630"]
[BlackFideId "12400599"]
[WhiteElo "2143"]
[BlackElo "2264"]
[Result "1/2-1/2"]
[Round "09"]
[TimeControl "180+1"]
[Date "2022.07.27"]
[WhiteClock "0:00:07"]
[BlackClock "0:00:40"]

1. e4 {[%clk 0:03:00]}  c5 {[%clk 0:02:49]} 2. d4 {[%clk 0:02:58]}  d6 {[%clk 0:02:50]} 3. dxc5 {[%clk 0:02:55]}  Qa5+ {[%clk 0:02:48]} 4. Nc3 {[%clk 0:02:54]}  Qxc5 {[%clk 0:02:48]} 5. Be3 {[%clk 0:02:54]}  Qc7 {[%clk 0:02:47]} 6. Nf3 {[%clk 0:02:53]}  Nf6 {[%clk 0:02:48]} 7. Bd3 {[%clk 0:02:41]}  a6 {[%clk 0:02:47]} 8. O-O {[%clk 0:02:41]}  Bg4 {[%clk 0:02:45]} 9. h3 {[%clk 0:02:35]}  Bxf3 {[%clk 0:02:44]} 10. Qxf3 {[%clk 0:02:34]}  e6 {[%clk 0:02:45]} 11. a4 {[%clk 0:02:34]}  Be7 {[%clk 0:02:45]} 12. a5 {[%clk 0:02:34]}  Nbd7 {[%clk 0:02:45]} 13. Qe2 {[%clk 0:02:30]}  O-O {[%clk 0:02:44]} 14. f4 {[%clk 0:02:29]}  Rac8 {[%clk 0:02:43]} 15. f5 {[%clk 0:02:01]}  exf5 {[%clk 0:02:27]} 16. exf5 {[%clk 0:01:56]}  Ne5 {[%clk 0:02:27]} 17. Bb6 {[%clk 0:01:53]}  Qc6 {[%clk 0:02:24]} 18. Rad1 {[%clk 0:01:23]}  Rfe8 {[%clk 0:02:20]} 19. Rf2 {[%clk 0:01:10]}  d5 {[%clk 0:02:17]} 20. Qxe5 {[%clk 0:01:03]}  Bc5 {[%clk 0:02:17]} 21. Qf4 {[%clk 0:01:02]}  Bxf2+ {[%clk 0:02:16]} 22. Qxf2 {[%clk 0:01:01]}  Ne4 {[%clk 0:02:15]} 23. Bxe4 {[%clk 0:01:00]}  dxe4 {[%clk 0:02:16]} 24. Bd4 {[%clk 0:00:58]}  Rcd8 {[%clk 0:02:12]} 25. Re1 {[%clk 0:00:56]}  Qc4 {[%clk 0:02:08]} 26. Be3 {[%clk 0:00:51]}  Qb4 {[%clk 0:02:05]} 27. f6 {[%clk 0:00:50]}  Qxb2 {[%clk 0:02:02]} 28. Qg3 {[%clk 0:00:50]}  g6 {[%clk 0:01:59]} 29. Ne2 {[%clk 0:00:38]}  Qxf6 {[%clk 0:01:58]} 30. Bg5 {[%clk 0:00:36]}  Qd6 {[%clk 0:01:51]} 31. Bxd8 {[%clk 0:00:36]}  Qxd8 {[%clk 0:01:50]} 32. Qf4 {[%clk 0:00:34]}  Qxa5 {[%clk 0:01:47]} 33. Rf1 {[%clk 0:00:33]}  f5 {[%clk 0:01:45]} 34. Nd4 {[%clk 0:00:33]}  Qc5 {[%clk 0:01:44]} 35. Qe3 {[%clk 0:00:33]}  b6 {[%clk 0:01:39]} 36. g4 {[%clk 0:00:30]}  Rd8 {[%clk 0:01:35]} 37. c3 {[%clk 0:00:29]}  fxg4 {[%clk 0:01:33]} 38. hxg4 {[%clk 0:00:30]}  Qe5 {[%clk 0:01:30]} 39. Qf2 {[%clk 0:00:27]}  Qd5 {[%clk 0:01:16]} 40. Qf6 {[%clk 0:00:25]}  Re8 {[%clk 0:01:14]} 41. Nc6 {[%clk 0:00:16]}  Qc5+ {[%clk 0:01:03]} 42. Kg2 {[%clk 0:00:15]}  Qf8 {[%clk 0:00:51]} 43. Qxf8+ {[%clk 0:00:12]}  Rxf8 {[%clk 0:00:52]} 44. Ne7+ {[%clk 0:00:12]}  Kg7 {[%clk 0:00:51]} 45. Rxf8 {[%clk 0:00:13]}  Kxf8 {[%clk 0:00:52]} 46. Nd5 {[%clk 0:00:14]}  b5 {[%clk 0:00:51]} 47. Nc7 {[%clk 0:00:14]}  a5 {[%clk 0:00:49]} 48. Nxb5 {[%clk 0:00:14]}  Ke7 {[%clk 0:00:49]} 49. Kf2 {[%clk 0:00:15]}  Ke6 {[%clk 0:00:49]} 50. Ke3 {[%clk 0:00:15]}  Kd5 {[%clk 0:00:50]} 51. Na3 {[%clk 0:00:14]}  h5 {[%clk 0:00:50]} 52. c4+ {[%clk 0:00:14]}  Ke5 {[%clk 0:00:49]} 53. gxh5 {[%clk 0:00:15]}  gxh5 {[%clk 0:00:49]} 54. Nb5 {[%clk 0:00:14]}  h4 {[%clk 0:00:48]} 55. c5 {[%clk 0:00:13]}  Kd5 {[%clk 0:00:48]} 56. Nc3+ {[%clk 0:00:12]}  Kxc5 {[%clk 0:00:48]} 57. Kxe4 {[%clk 0:00:12]}  Kc4 {[%clk 0:00:48]} 58. Nb1 {[%clk 0:00:12]}  a4 {[%clk 0:00:46]} 59. Na3+ {[%clk 0:00:11]}  Kb4 {[%clk 0:00:45]} 60. Nb1 {[%clk 0:00:11]}  Kb3 {[%clk 0:00:45]} 61. Kf3 {[%clk 0:00:10]}  Kb2 {[%clk 0:00:45]} 62. Nd2 {[%clk 0:00:10]}  Kc2 {[%clk 0:00:43]} 63. Nc4 {[%clk 0:00:11]}  Kc3 {[%clk 0:00:43]} 64. Na3 {[%clk 0:00:10]}  Kb2 {[%clk 0:00:43]} 65. Nc4+ {[%clk 0:00:10]}  Kb3 {[%clk 0:00:44]} 66. Nd2+ {[%clk 0:00:10]}  Kb4 {[%clk 0:00:41]} 67. Nb1 {[%clk 0:00:07]}  Kb3 {[%clk 0:00:41]} 68. Kg4 {[%clk 0:00:07]}  Kc2 {[%clk 0:00:40]} 69. Na3+ {[%clk 0:00:07]}  Kb2 {[%clk 0:00:39]} 70. Nc4+ {[%clk 0:00:07]}  Kc3 {[%clk 0:00:39]} 71. Na3 {[%clk 0:00:07]}  Kb3 {[%clk 0:00:39]} 72. Nb1 {[%clk 0:00:06]}  Kb2 {[%clk 0:00:39]} 73. Nd2 {[%clk 0:00:06]}  a3 {[%clk 0:00:38]} 74. Nc4+ {[%clk 0:00:07]}  Kb3 {[%clk 0:00:39]} 75. Nxa3 {[%clk 0:00:07]}  Kxa3 {[%clk 0:00:40]} 76. Kxh4 {[%clk 0:00:07]} 1/2-1/2


[Site "https://www.chess.com"]